fUSD/lending_fUSD_20250206
["ID","MTS","AMOUNT","RATE_DAILY","PERIOD"]
[351828340,1738804254166,-5000.0,0.00020744,2]
[351828341,1738804254177,-5000.0,0.00020766,2]
[351828342,1738804254187,-5000.0,0.00020772,2]
[351828343,1738804254197,-2000.0,0.00020791,2]
[351828344,1738804254207,-940.55,0.00020798,2]
[351828345,1738804254216,-3997.42865553,0.000208,7]
[351828346,1738804254226,-25000.0,0.000208,2]
[351828347,1738804254235,-150.0,0.00020806,120]
[351828348,1738804254246,-7905.73,0.00020822,2]
[351828349,1738804254255,-2252.99,0.00020832,2]
[351828350,1738804254264,-25000.0,0.00020843,2]
[351828351,1738804254274,-493.56431529,0.000209,30]
[351828352,1738804254284,-300.0,0.000209,7]
[351828353,1738804254293,-5000.0,0.00020912,2]
[351828354,1738804254303,-5000.0,0.00020914,2]
[351828355,1738804254313,-5000.0,0.00020945,2]
[351828356,1738804254323,-150.0,0.0002097,120]
[351828357,1738804254333,-500.0,0.00020973,2]
[351828358,1738804254342,-500.0,0.00020973,2]
[351828359,1738804254352,-1372.0,0.00020992,2]
[351828360,1738804254362,-900.0,0.00021,22]
[351828361,1738804254371,-188.90927476,0.00021,2]
[351828362,1738804254380,-10000.0,0.00021,4]
[351828363,1738804254390,-155.0,0.00021,5]
[351828364,1738804254399,-250.2298918,0.00021,2]
[351828365,1738804254409,-41582.81493761,0.00021,2]
[351828366,1738804254420,-169.21298726,0.00021,15]
[351828367,1738804254511,-11408.96892047,0.00021,7]
[351828368,1738804254521,-21429.33607168,0.00021,2]
[351828369,1738804254530,-335.88982949,0.00021,30]
[351828370,1738804254540,-613.49,0.00021,30]
[351828371,1738804254550,-1509.02025813,0.00021,2]
[351828372,1738804254559,-91549.05295831,0.00021,7]
[351828373,1738804254570,-10761.72900418,0.00021,5]
[351828374,1738804254580,-201.41439812,0.00021,7]
[351828375,1738804254589,-10053.66305979,0.00021,2]
[351828376,1738804254599,-50000.0,0.00021,10]
[351828377,1738804254608,-415.15,0.00021,7]
[351828378,1738804254618,-750.0,0.00021,2]
[351828379,1738804254629,-2110.0,0.00021,2]
[351828380,1738804254638,-987.95,0.00021,2]
[351828382,1738804254648,-2154.19,0.00021,2]
[351828384,1738804254658,-5000.0,0.00021,2]
[351828385,1738804254669,-612.88,0.00021,2]
[351828386,1738804254679,-5949.2,0.00021,2]
[351828387,1738804254688,-150.0,0.00021012,120]
[351828388,1738804254698,-150.0,0.00021045,120]
[351828389,1738804254708,-367.57,0.0002109,2]
[351828390,1738804254717,-370.67,0.00021099,2]
[351828391,1738804254727,-374.73,0.00021099,2]
[351828392,1738804254736,-372.32,0.000211,2]
[351828393,1738804254746,-380.27,0.00021109,2]
[351828394,1738804254755,-150.0,0.00021156,2]
[351828395,1738804254766,-199.0,0.00021156,2]
[351828396,1738804254775,-150.0,0.0002116,120]
[351828397,1738804254785,-150.0,0.00021197,2]
[351828398,1738804254794,-5643.40159,0.000212,8]
[351828399,1738804254804,-3500.0,0.000212,8]
[351828400,1738804254814,-166.66,0.00021208,2]
[351828401,1738804254824,-513.06,0.00021245,2]
[351828402,1738804254833,-17432.64234212,0.0002125,6]
[351828403,1738804254842,-6016.8848,0.000213,8]
[351828404,1738804254853,-4084.31,0.000213,2]
[351828405,1738804254863,-1000.0,0.00021331,2]
[351828406,1738804254872,-500.0,0.0002134,2]
[351828407,1738804254883,-6043.36,0.0002137,2]
[351828408,1738804254893,-3769.59547274,0.0002138,3]
[351828409,1738804254902,-20546.37506561,0.0002138,3]
[351828410,1738804254912,-547.57,0.00021441,2]
[351828411,1738804254922,-8646.99286582,0.00021459,2]
[351828412,1738804254933,-24363.69559,0.0002148,2]
[351828413,1738804254942,-24363.69559,0.0002148,2]
[351828414,1738804254951,-24363.69559,0.0002148,2]
[351828415,1738804254961,-24363.69559,0.0002148,2]
[351828416,1738804254978,-24363.69559,0.0002148,2]
[351828417,1738804254988,-24363.69559,0.0002148,2]
[351828418,1738804254997,-24363.69559,0.0002148,2]
[351828419,1738804255008,-24363.69559,0.0002148,2]
[351828420,1738804255019,-24363.69559,0.0002148,2]
[351828421,1738804255028,-24363.69559,0.0002148,2]
[351828422,1738804255037,-24363.69559,0.0002148,2]
[351828423,1738804255047,-24363.69559,0.0002148,2]
[351828424,1738804255056,-24363.69559,0.0002148,2]
[351828425,1738804255067,-24363.69559,0.0002148,2]
[351828426,1738804255076,-24363.69559,0.0002148,2]
[351828427,1738804255085,-24363.69559,0.0002148,2]
[351828428,1738804255095,-24363.69559,0.0002148,2]
[351828429,1738804255104,-24363.69559,0.0002148,2]
[351828430,1738804255114,-24363.69559,0.0002148,2]
[351828431,1738804255123,-24363.69559,0.0002148,2]
[351828432,1738804255134,-24363.69559,0.0002148,2]
[351828433,1738804255145,-24363.69559,0.0002148,2]
[351828434,1738804255154,-151.0,0.0002148,2]
[351828435,1738804255165,-151.0,0.0002148,7]
[351828436,1738804255174,-151.0,0.0002148,7]
[351828437,1738804255184,-151.0,0.0002148,7]
[351828438,1738804255193,-151.0,0.0002148,7]
[351828439,1738804255203,-151.0,0.0002148,7]
[351828440,1738804255212,-151.0,0.0002148,7]
[351828441,1738804255222,-151.0,0.0002148,7]
[351828442,1738804255231,-151.0,0.0002148,7]
[351828443,1738804255241,-151.0,0.0002148,7]
[351828444,1738804255251,-151.0,0.0002148,7]
[351828445,1738804255260,-151.0,0.0002148,7]
[351828446,1738804255270,-151.0,0.0002148,7]
[351828447,1738804255279,-151.0,0.0002148,7]
[351828448,1738804255289,-151.0,0.0002148,7]
[351828449,1738804255298,-151.0,0.0002148,7]
[351828450,1738804255307,-151.0,0.0002148,7]
[351828451,1738804255320,-151.0,0.0002148,7]
[351828452,1738804255331,-151.0,0.0002148,7]
[351828453,1738804255341,-151.0,0.0002148,7]
[351828454,1738804255351,-151.0,0.0002148,7]
[351828455,1738804255361,-151.0,0.0002148,7]
[351828456,1738804255371,-151.0,0.0002148,7]
[351828457,1738804255381,-151.0,0.0002148,7]
[351828458,1738804255391,-151.0,0.0002148,7]
[351828459,1738804255402,-151.0,0.0002148,7]
[351828460,1738804255415,-151.0,0.0002148,7]
[351828461,1738804255427,-151.0,0.0002148,7]
[351828462,1738804255437,-151.0,0.0002148,7]
[351828463,1738804255447,-151.0,0.0002148,7]
[351828464,1738804255459,-151.0,0.0002148,7]
[351828465,1738804255469,-151.0,0.0002148,7]
[351828466,1738804255480,-151.0,0.0002148,7]
[351828467,1738804255490,-151.0,0.0002148,7]
[351828468,1738804255499,-151.0,0.0002148,7]
[351828469,1738804255510,-151.0,0.0002148,7]
[351828470,1738804255521,-151.0,0.0002148,7]
[351828471,1738804255531,-151.0,0.0002148,7]
[351828472,1738804255541,-151.0,0.0002148,7]
[351828473,1738804255555,-151.0,0.0002148,7]
[351828474,1738804255566,-151.0,0.0002148,7]
[351828475,1738804255576,-151.0,0.0002148,7]
[351828476,1738804255585,-151.0,0.0002148,7]
[351828477,1738804255595,-151.0,0.0002148,7]
[351828478,1738804255605,-151.0,0.0002148,7]
[351828479,1738804255615,-151.0,0.0002148,7]
[351828480,1738804255624,-151.0,0.0002148,7]
[351828481,1738804255633,-151.0,0.0002148,7]
[351828482,1738804255643,-151.0,0.0002148,7]
[351828483,1738804255653,-151.0,0.0002148,7]
[351828484,1738804255667,-151.0,0.0002148,7]
[351828485,1738804255677,-151.0,0.0002148,7]
[351828486,1738804255687,-151.0,0.0002148,7]
[351828487,1738804255697,-151.0,0.0002148,7]
[351828488,1738804255708,-151.0,0.0002148,7]
[351828489,1738804255725,-151.0,0.0002148,7]
[351828490,1738804255735,-151.0,0.0002148,7]
[351828491,1738804255744,-151.0,0.0002148,7]
[351828492,1738804255754,-151.0,0.0002148,7]
[351828493,1738804255764,-151.0,0.0002148,7]
[351828494,1738804255773,-151.0,0.0002148,7]
[351828495,1738804255784,-151.0,0.0002148,7]
[351828496,1738804255793,-151.0,0.0002148,7]
[351828497,1738804255803,-151.0,0.0002148,7]
[351828498,1738804255813,-151.0,0.0002148,7]
[351828499,1738804255823,-151.0,0.0002148,7]
[351828500,1738804255832,-151.0,0.0002148,7]
[351828501,1738804255841,-151.0,0.0002148,7]
[351828502,1738804255851,-151.0,0.0002148,7]
[351828503,1738804255861,-151.0,0.0002148,7]
[351828504,1738804255871,-151.0,0.0002148,7]
[351828505,1738804255881,-151.0,0.0002148,7]
[351828506,1738804255891,-151.0,0.0002148,7]
[351828507,1738804255901,-151.0,0.0002148,7]
[351828508,1738804255910,-151.0,0.0002148,7]
[351828509,1738804255922,-151.0,0.0002148,7]
[351828510,1738804255933,-151.0,0.0002148,7]
[351828511,1738804255942,-151.0,0.0002148,7]
[351828512,1738804255953,-151.0,0.0002148,7]
[351828513,1738804255962,-151.0,0.0002148,7]
[351828514,1738804255976,-151.0,0.0002148,7]
[351828515,1738804255988,-151.0,0.0002148,7]
[351828516,1738804255998,-151.0,0.0002148,7]
[351828517,1738804256008,-151.0,0.0002148,7]
[351828518,1738804256019,-151.0,0.0002148,7]
[351828519,1738804256029,-151.0,0.0002148,7]
[351828520,1738804256038,-151.0,0.0002148,7]
[351828521,1738804256048,-151.0,0.0002148,7]
[351828522,1738804256058,-151.0,0.0002148,7]
[351828523,1738804256068,-151.0,0.0002148,7]
[351828524,1738804256079,-151.0,0.0002148,7]
[351828525,1738804256089,-151.0,0.0002148,7]
[351828526,1738804256099,-151.0,0.0002148,7]
[351828527,1738804256109,-151.0,0.0002148,7]
[351828528,1738804256120,-151.0,0.0002148,7]
[351828529,1738804256130,-151.0,0.0002148,7]
[351828530,1738804256140,-151.0,0.0002148,7]
[351828531,1738804256149,-151.0,0.0002148,7]
[351828532,1738804256159,-151.0,0.0002148,7]
[351828533,1738804256171,-151.0,0.0002148,7]
[351828534,1738804256182,-151.0,0.0002148,7]
[351828535,1738804256191,-151.0,0.0002148,2]
[351828536,1738804256201,-254.285976,0.0002148,2]
[351828537,1738804256211,-7500.0,0.0002148,2]
[351828538,1738804256221,-7500.0,0.0002148,2]
[351828539,1738804256230,-600.465488,0.0002148,2]
[351828540,1738804256239,-170.851552,0.0002148,2]
[351828541,1738804256249,-600.465488,0.0002148,2]
[351828542,1738804256258,-239.015196,0.0002148,2]
[351828543,1738804256269,-2000.0,0.00021483,2]
[351828544,1738804256278,-2568.34495154,0.000215,2]
[351828545,1738804256288,-2110.0,0.000215,2]
[351828546,1738804256298,-4503.17932226,0.0002152,2]
[351828547,1738804256308,-501.59209749,0.00021521,2]
[351828548,1738804256318,-728.86193729,0.00021521,2]
[351828549,1738804256327,-300.0,0.00021557,2]
[351828550,1738804256338,-454.72010579,0.00021595,30]
[351828551,1738804256348,-1281.44,0.0002161,30]
[351828552,1738804256442,-2000.0,0.00021654,31]
[351828553,1738804256452,-876.8,0.00021656,2]
[351828554,1738804256462,-300.0,0.00021656,2]
[351828555,1738804256471,-7250.68710732,0.000217,2]
[351828556,1738804256480,-11000.0,0.000217,2]
[351828557,1738804256490,-150.0,0.00021702,2]
[351828558,1738804256500,-141544.40562233,0.000218,2]
[351828559,1738804256510,-1000.84,0.000218,7]
[351828560,1738804256520,-20455.03497734,0.000218,2]
[351828561,1738804256529,-5434.0,0.000218,2]
[351828562,1738804256540,-3390.1275,0.000218,9]
[351828563,1738804256549,-1000.0,0.0002187,7]
[351828564,1738804256559,-501.58542591,0.000219,15]
[351828565,1738804256568,-20149.36974682,0.000219,14]
[351828566,1738804256579,-709.0,0.000219,4]
[351828567,1738804256589,-200.0,0.000219,2]
[351828568,1738804256599,-350.0,0.00021917,2]
[351828569,1738804256608,-350.0,0.00021917,2]
[351828570,1738804256617,-283.67081941,0.00021917,2]
[351828571,1738804256627,-500.0,0.00021917,4]
[351828572,1738804256637,-380.30567778,0.00021917,4]
[351828573,1738804256647,-1491.67,0.00021917,4]
[351828574,1738804256665,-1491.67,0.00021917,4]
[351828575,1738804256675,-1491.67,0.00021917,4]
[351828576,1738804256685,-1491.67,0.00021917,4]
[351828577,1738804256695,-1491.67,0.00021917,4]
[351828578,1738804256705,-1491.67,0.00021917,4]
[351828579,1738804256715,-1491.67,0.00021917,4]
[351828580,1738804256724,-1491.67,0.00021917,4]
[351828581,1738804256733,-1491.67,0.00021917,4]
[351828582,1738804256743,-1491.67,0.00021917,4]
[351828583,1738804256752,-1491.67,0.00021917,4]
[351828584,1738804256762,-1491.67,0.00021917,4]
[351828585,1738804256771,-1491.67,0.00021917,4]
[351828586,1738804256780,-1491.67,0.00021917,4]
[351828587,1738804256790,-1491.67,0.00021917,4]
[351828588,1738804256799,-1491.67,0.00021917,4]
[351828589,1738804256809,-1491.67,0.00021917,4]
[351828590,1738804256818,-1491.67,0.00021917,4]
[351828591,1738804256828,-1491.67,0.00021917,4]
[351828592,1738804256838,-1491.67,0.00021917,4]
[351828593,1738804256848,-1491.67,0.00021917,4]
[351828594,1738804256858,-1491.67,0.00021917,4]
[351828595,1738804256867,-1491.67,0.00021917,4]
[351828596,1738804256878,-1491.67434345,0.00021917,4]
[351828597,1738804256888,-1239.35,0.00021917,4]
[351828598,1738804256898,-1239.35,0.00021917,4]
[351828599,1738804256908,-1239.35,0.00021917,4]
[351828600,1738804256919,-1239.35,0.00021917,4]
[351828601,1738804256930,-1239.35,0.00021917,4]
[351828602,1738804256940,-1239.35,0.00021917,4]
[351828603,1738804256950,-1239.35,0.00021917,4]
[351828604,1738804256959,-1239.35,0.00021917,4]
[351828605,1738804256970,-1239.35,0.00021917,4]
[351828606,1738804256982,-1239.35,0.00021917,4]
[351828607,1738804256992,-1239.35,0.00021917,4]
[351828608,1738804257002,-1239.35,0.00021917,4]
[351828609,1738804257012,-1239.35,0.00021917,4]
[351828610,1738804257022,-1239.35,0.00021917,4]
[351828611,1738804257033,-1239.35,0.00021917,4]
[351828612,1738804257042,-1239.35,0.00021917,4]
[351828613,1738804257052,-1239.35,0.00021917,4]
[351828614,1738804257061,-1239.35,0.00021917,4]
[351828615,1738804257072,-1239.35,0.00021917,4]
[351828616,1738804257082,-1239.35,0.00021917,4]
[351828617,1738804257092,-1239.35,0.00021917,4]
[351828618,1738804257102,-1239.35,0.00021917,4]
[351828619,1738804257113,-1239.35,0.00021917,4]
[351828620,1738804257123,-1239.55953169,0.00021917,4]
[351828621,1738804257133,-3289.9,0.00021917,120]
[351828622,1738804257143,-3289.9,0.00021917,120]
[351828623,1738804257153,-3289.9,0.00021917,120]
[351828624,1738804257165,-3289.9,0.00021917,120]
[351828625,1738804257174,-3289.9,0.00021917,120]
[351828626,1738804257184,-3289.9,0.00021917,120]
[351828627,1738804257194,-3289.9,0.00021917,120]
[351828628,1738804257203,-3289.9,0.00021917,120]
[351828629,1738804257213,-3289.9,0.00021917,120]
[351828630,1738804257223,-3289.9,0.00021917,120]
[351828631,1738804257233,-3289.9,0.00021917,120]
[351828632,1738804257243,-3289.9,0.00021917,120]
[351828633,1738804257253,-3289.9,0.00021917,120]
[351828634,1738804257262,-3289.9,0.00021917,120]
[351828635,1738804257272,-3289.9,0.00021917,120]
[351828636,1738804257281,-3289.9,0.00021917,120]
[351828637,1738804257291,-3289.9,0.00021917,120]
[351828638,1738804257300,-3289.9,0.00021917,120]
[351828639,1738804257309,-3289.9,0.00021917,120]
[351828640,1738804257318,-3289.9,0.00021917,120]
[351828641,1738804257328,-3289.9,0.00021917,120]
[351828642,1738804257338,-3289.9,0.00021917,120]
[351828643,1738804257347,-3289.9,0.00021917,120]
[351828644,1738804257356,-3289.91600974,0.00021917,120]
[351828645,1738804257366,-2000.0,0.00021917,30]
[351828646,1738804257376,-2000.0,0.00021917,30]
[351828647,1738804257385,-156.54208843,0.00021917,30]
[351828648,1738804257395,-291.59425706,0.00021917,20]
[351828649,1738804257404,-1000.0,0.00021917,120]
[351828650,1738804257417,-381.33991943,0.00021917,120]
[351828651,1738804257426,-2518.53,0.00021917,2]
[351828652,1738804257436,-2518.53,0.00021917,2]
[351828653,1738804257446,-2518.53,0.00021917,2]
[351828654,1738804257455,-2518.53,0.00021917,2]
[351828655,1738804257466,-2518.53,0.00021917,2]
[351828656,1738804257475,-2518.53,0.00021917,2]
[351828657,1738804257486,-2518.53,0.00021917,2]
[351828658,1738804257495,-2518.53,0.00021917,2]
[351828659,1738804257505,-2518.53,0.00021917,2]
[351828660,1738804257514,-2518.53,0.00021917,2]
[351828661,1738804257523,-2518.53,0.00021917,2]
[351828662,1738804257533,-2518.53,0.00021917,2]
[351828663,1738804257542,-2518.53,0.00021917,2]
[351828664,1738804257552,-2518.53,0.00021917,2]
[351828665,1738804257562,-2518.53,0.00021917,2]
[351828666,1738804257571,-2518.53,0.00021917,2]
[351828667,1738804257581,-2518.53,0.00021917,2]
[351828668,1738804257591,-2518.53,0.00021917,2]
[351828669,1738804257602,-2518.53,0.00021917,2]
[351828670,1738804257613,-2518.53,0.00021917,2]
[351828671,1738804257622,-2518.53,0.00021917,2]
[351828672,1738804257632,-2518.53,0.00021917,2]
[351828673,1738804257643,-2518.53,0.00021917,2]
[351828674,1738804257654,-2518.54229411,0.00021917,2]
[351828675,1738804257665,-500.0,0.00021917,7]
[351828676,1738804257675,-500.0,0.00021917,7]
[351828677,1738804257684,-515.9496014,0.00021917,7]
[351828678,1738804257693,-500.0,0.00021917,8]
[351828679,1738804257703,-500.0,0.00021917,8]
[351828680,1738804257714,-500.0,0.00021917,8]
[351828681,1738804257724,-500.0,0.00021917,8]
[351828682,1738804257734,-500.0,0.00021917,8]
[351828683,1738804257745,-500.0,0.00021917,8]
[351828684,1738804257756,-500.0,0.00021917,8]
[351828685,1738804257766,-500.0,0.00021917,8]
[351828686,1738804257776,-500.0,0.00021917,8]
[351828687,1738804257785,-244.06966032,0.00021917,8]
[351828688,1738804257795,-2000.0,0.00021918,13]
[351828689,1738804257804,-2000.0,0.00021918,13]
[351828690,1738804257813,-2000.0,0.00021918,13]
[351828691,1738804257823,-2000.0,0.00021918,13]
[351828692,1738804257832,-2000.0,0.00021918,13]
[351828693,1738804257841,-2000.0,0.00021918,13]
[351828694,1738804257850,-2000.0,0.00021918,13]
[351828695,1738804257859,-2000.0,0.00021918,13]
[351828696,1738804257869,-2000.0,0.00021918,13]
[351828697,1738804257878,-2000.0,0.00021918,13]
[351828698,1738804257887,-2000.0,0.00021918,13]
[351828699,1738804257897,-2000.0,0.00021918,13]
[351828700,1738804257906,-2000.0,0.00021918,13]
[351828701,1738804257918,-2000.0,0.00021918,13]
[351828702,1738804257927,-2000.0,0.00021918,13]
[351828703,1738804257937,-2000.0,0.00021918,13]
[351828704,1738804257946,-2000.0,0.00021918,13]
[351828705,1738804257955,-2006.0,0.00021918,13]
[351828706,1738804257965,-2000.0,0.00021918,13]
[351828707,1738804257976,-2000.0,0.00021918,13]
[351828708,1738804257986,-2000.0,0.00021918,13]
[351828709,1738804257995,-2000.0,0.00021918,13]
[351828710,1738804258004,-2000.0,0.00021918,13]
[351828711,1738804258014,-2000.0,0.00021918,13]
[351828712,1738804258025,-2000.0,0.00021918,13]
[351828713,1738804258034,-2000.0,0.00021918,13]
[351828714,1738804258043,-2000.0,0.00021918,13]
[351828715,1738804258054,-2000.0,0.00021918,13]
[351828716,1738804258062,-2000.0,0.00021918,13]
[351828717,1738804258070,-2000.0,0.00021918,13]
[351828718,1738804258080,-2000.0,0.00021918,13]
[351828719,1738804258089,-2000.0,0.00021918,13]
[351828720,1738804258099,-2000.0,0.00021918,13]
[351828721,1738804258108,-2000.0,0.00021918,13]
[351828722,1738804258194,-2000.0,0.00021918,13]
[351828723,1738804258204,-2000.0,0.00021918,13]
[351828724,1738804258213,-2000.0,0.00021918,13]
[351828725,1738804258222,-2000.0,0.00021918,13]
[351828726,1738804258231,-2000.0,0.00021918,13]
[351828727,1738804258240,-2000.0,0.00021918,13]
[351828728,1738804258250,-2000.0,0.00021918,13]
[351828729,1738804258259,-2000.0,0.00021918,13]
[351828730,1738804258268,-2000.0,0.00021918,13]
[351828731,1738804258277,-2000.0,0.00021918,13]
[351828732,1738804258287,-2000.0,0.00021918,13]
[351828733,1738804258297,-1909.0,0.00021918,13]
[351828734,1738804258307,-211.82522699,0.00021918,2]
[351828735,1738804258316,-500.0,0.00021918,3]
[351828736,1738804258326,-500.0,0.00021945,3]
[351828737,1738804258336,-300.0,0.0002195,3]
[351828738,1738804258347,-495.294492,0.0002195,120]
[351828739,1738804258358,-2000.0,0.0002195,120]
[351828740,1738804258368,-642.339649,0.0002195,120]
[351828741,1738804258378,-237.079767,0.0002195,120]
[351828742,1738804258389,-500.0,0.00021973,3]
[351828743,1738804258399,-500.0,0.00021987,30]
[351828744,1738804258409,-1000.0,0.00021987,7]
[351828745,1738804258424,-1000.0,0.00021988,7]
[351828746,1738804258433,-1000.0,0.00021988,7]
[351828747,1738804258443,-157.49,0.00021989,2]
[351828748,1738804258452,-996.73303067,0.0002199,2]
[351828749,1738804258461,-30157.62727376,0.0002199,2]
[351828750,1738804258470,-1000.0,0.00021999,14]
[351828751,1738804258480,-25019.35639927,0.00021999,15]
[351828752,1738804258490,-20000.0,0.00022,20]
[351828753,1738804258499,-20000.0,0.00022,20]
[351828754,1738804258509,-20000.0,0.00022,20]
[351828755,1738804258518,-5336.0,0.00022,60]
[351828756,1738804258527,-28250.21571313,0.00022,7]
[351828757,1738804258536,-420.96359045,0.00022,90]
[351828758,1738804258545,-168276.31909361,0.00022,30]
[351828759,1738804258555,-16559.12,0.00022,30]
[351828760,1738804258564,-17059.3446416,0.00022,30]
[351828761,1738804258574,-500.23907256,0.00022,2]
[351828762,1738804258583,-245.64469668,0.00022,2]
[351828763,1738804258592,-756.24920086,0.00022,7]
[351828764,1738804258601,-600.0,0.00022,22]
[351828765,1738804258610,-900.0,0.00022,23]
[351828766,1738804258620,-5000.0,0.00022,7]
[351828767,1738804258630,-3000.0,0.00022,7]
[351828768,1738804258639,-500.0,0.00022,2]
[351828769,1738804258649,-26047.66000446,0.00022,2]
[351828770,1738804258659,-400.00287001,0.00022,10]
[351828771,1738804258671,-8049.6590384,0.00022,15]
[351828772,1738804258680,-50067.27,0.00022,7]
[351828773,1738804258690,-6077.10534538,0.00022,15]
[351828774,1738804258700,-2445.62280278,0.00022,7]
[351828775,1738804258709,-2939.0,0.00022,30]
[351828776,1738804258719,-3000.0,0.00022,7]
[351828777,1738804258729,-124616.70568165,0.00022,2]
[351828778,1738804258738,-641.79760325,0.00022,2]
[351828779,1738804258747,-285.19023226,0.00022,120]
[351828780,1738804258756,-729.24207486,0.00022,120]
[351828781,1738804258766,-1000.0,0.00022,120]
[351828782,1738804258775,-2110.0,0.00022,2]
[351828783,1738804258785,-151.0,0.00022,7]
[351828784,1738804258794,-151.0,0.00022,7]
[351828785,1738804258803,-7500.0,0.00022,7]
[351828786,1738804258812,-7500.0,0.00022,7]
[351828787,1738804258822,-600.465488,0.00022,7]
[351828788,1738804258831,-600.465488,0.00022,7]
[351828789,1738804258841,-500.0,0.00022,3]
[351828790,1738804258850,-500.0,0.00022028,3]
[351828791,1738804258860,-500.0,0.00022055,3]
[351828792,1738804258870,-500.0,0.00022082,3]
[351828793,1738804258879,-500.0,0.0002211,3]
[351828794,1738804258888,-230.17320144,0.0002211,2]
[351828795,1738804258898,-500.0,0.00022137,3]
[351828796,1738804258907,-500.0,0.00022165,3]
[351828797,1738804258918,-500.0,0.00022192,3]
[351828798,1738804258928,-150.0,0.00022206,2]
[351828799,1738804258938,-439.5,0.00022206,2]
[351828800,1738804258947,-774.8,0.00022206,2]
[351828801,1738804258957,-774.8,0.00022206,2]
[351828802,1738804258966,-439.5,0.00022206,2]
[351828803,1738804258978,-439.5,0.00022206,2]
[351828804,1738804258988,-774.8,0.00022206,2]
[351828805,1738804258997,-439.5,0.00022206,2]
[351828806,1738804259006,-774.8,0.00022206,2]
[351828807,1738804259017,-439.5,0.00022206,2]
[351828808,1738804259027,-803.23463851,0.00022219,3]
[351828809,1738804259036,-20010.78527389,0.0002222,5]
[351828810,1738804259045,-166.66,0.00022259,2]
[351828811,1738804259056,-425.0,0.00022296,30]
[351828812,1738804259066,-1511.91,0.00022347,4]
[351828813,1738804259075,-10429.96271485,0.00022351,15]
[351828814,1738804259084,-10000.0,0.0002241,10]
[351828815,1738804259094,-150.0,0.0002248,2]
[351828816,1738804259103,-875.86,0.0002248,2]
[351828817,1738804259112,-33952.64503406,0.000225,2]
[351828818,1738804259122,-2900.0,0.000225,15]
[351828819,1738804259131,-4084.31,0.000225,7]
[351828820,1738804259142,-2110.0,0.000225,2]
[351828821,1738804259151,-3000.0,0.000227,2]
[351828822,1738804259160,-500.999999,0.0002271,2]
[351828823,1738804259175,-150.0,0.00022711,2]
[351828824,1738804259185,-1312.88,0.00022739,120]
[351828825,1738804259194,-1312.88,0.00022739,120]
[351828826,1738804259203,-1312.88,0.00022739,120]
[351828827,1738804259212,-1312.88,0.00022739,120]
[351828828,1738804259221,-1312.88,0.00022739,120]
[351828829,1738804259231,-1312.88,0.00022739,120]
[351828830,1738804259240,-1312.88,0.00022739,120]
[351828831,1738804259250,-1312.88,0.00022739,120]
[351828832,1738804259259,-1312.88,0.00022739,120]
[351828833,1738804259268,-1312.88,0.00022739,120]
[351828834,1738804259278,-1312.88,0.00022739,120]
[351828835,1738804259287,-1312.88,0.00022739,120]
[351828836,1738804259296,-1312.88,0.00022739,120]
[351828837,1738804259306,-1312.88,0.00022739,120]
[351828838,1738804259315,-1312.88,0.00022739,120]
[351828839,1738804259325,-1312.88,0.00022739,120]
[351828840,1738804259335,-1312.88,0.00022739,120]
[351828841,1738804259344,-1312.88,0.00022739,120]